lending/lending_fUSD_20240522
["ID","MTS","AMOUNT","RATE_DAILY","PERIOD"]
[327722771,1716382234162,-243.99,0.00021918,2]
[327722772,1716382234171,-2000.0,0.00021918,2]
[327722773,1716382234181,-199.46,0.00021918,2]
[327722774,1716382234190,-163.86,0.00021918,2]
[327722775,1716382234200,-698.33236815,0.00022,2]
[327722776,1716382234210,-956.38018722,0.00022,2]
[327722777,1716382234219,-239.72713494,0.00022,2]
[327722778,1716382234228,-1058.87217426,0.00022,2]
[327722779,1716382234237,-159.16129054,0.00022026,2]
[327722780,1716382234248,-417.15771221,0.00022039,2]
[327722781,1716382234258,-224.82587854,0.0002211,2]
[327722782,1716382234268,-156.06,0.00022174,2]
[327722783,1716382234277,-151.8895225,0.00022196,2]
[327722784,1716382234287,-417.15771221,0.00022236,2]
[327722785,1716382234296,-251.10652522,0.00022319,2]
[327722786,1716382234307,-159.16129054,0.0002232,2]
[327722787,1716382234316,-251.10652522,0.00022328,2]
[327722788,1716382234325,-1001.487425,0.00022466,2]
[327722789,1716382234334,-151.8895225,0.00022472,2]
[327722790,1716382234344,-170.70787976,0.00022475,2]
[327722791,1716382234353,-151.8895225,0.00022489,2]
[327722792,1716382234363,-1865.50399987,0.000225,2]
[327722793,1716382234375,-1074.50342781,0.000225,2]
[327722794,1716382234448,-1204.46990933,0.000225,2]
[327722795,1716382234459,-3542.069975,0.000225,2]
[327722796,1716382234471,-653.04,0.000225,2]
[327722797,1716382234482,-15598.99994,0.000225,2]
[327722798,1716382234604,-443.7326138,0.000225,2]
[327722799,1716382235300,281.88330445,0.00012847,2]
[327722801,1716382238226,-171.1,0.00021385,2]
[327722804,1716382238236,-1665.17,0.000225,2]
[327722807,1716382238345,-7098.03342488,0.000225,2]
[327722808,1716382238355,-967.51,0.00022586,2]
[327722809,1716382238365,-155.31485281,0.00022698,2]
[327722810,1716382238375,-417.15771221,0.000227,2]
[327722811,1716382238385,-154.49054118,0.00022726,2]
[327722812,1716382238394,-256.7607952,0.00022761,2]
[327722813,1716382238404,-489.06642785,0.0002278,2]
[327722814,1716382238413,-166.66666666,0.00022814,2]
[327722815,1716382238422,-251.10652522,0.00022829,2]
[327722816,1716382238432,-151.8895225,0.00022874,2]
[327722817,1716382238442,-489.06642785,0.000229,2]
[327722818,1716382238451,-251.10652522,0.00022902,2]
[327722819,1716382238460,-205.54,0.00022936,2]
[327722820,1716382238470,-154.67800329,0.00022946,2]
[327722821,1716382238479,-256.7607952,0.00022954,2]
[327722822,1716382238488,-5511.49091993,0.00023,2]
[327722823,1716382238504,-750.0,0.00023,2]
[327722824,1716382238514,-235.18716122,0.00023031,2]
[327722825,1716382238523,-154.49054118,0.0002316,2]
[327722826,1716382238533,-251.10652522,0.00023198,2]
[327722827,1716382238545,-2467.49464349,0.00023217,2]
[327722828,1716382238554,-318.77271268,0.00023222,2]
[327722829,1716382238564,-1001.487425,0.00023288,2]
[327722830,1716382238573,-417.15771221,0.00023294,2]
[327722831,1716382238583,-152.98488687,0.00023365,2]
[327722832,1716382238592,-151.97205109,0.00023365,2]
[327722833,1716382238602,-2004.82313321,0.000234,2]
[327722834,1716382238611,-152.98488687,0.00023441,2]
[327722836,1716382238620,-1200.58933735,0.00023457,2]
[327722838,1716382238630,-1104.424,0.00023487,2]
[327722840,1716382238640,-809.0,0.00023487,2]
[327722842,1716382238650,-445.0,0.00023487,2]
[327722844,1716382238660,-439.0,0.00023487,2]
[327722845,1716382238670,-212.0,0.00023487,2]
[327722846,1716382238679,-417.15771221,0.00023492,2]
[327722847,1716382238688,-256.7607952,0.00023497,2]
[327722848,1716382238698,-155.46791382,0.00023497,2]
[327722849,1716382238707,-548.0223,0.000235,2]
[327722850,1716382238716,-3293.66028501,0.000235,2]
[327722852,1716382238726,-151.97205109,0.00023519,2]
[327722853,1716382238735,-417.15771221,0.00023571,2]
[327722855,1716382238746,-335304.0,0.000236,2]
[327722857,1716382238756,-151.0,0.000236,7]
[327722859,1716382238765,-155.31485281,0.00023663,2]
[327722861,1716382238774,-166.66666665,0.00023672,2]
[327722863,1716382238783,-155.31485281,0.00023674,2]
[327722865,1716382238792,-251.10652522,0.00023693,2]
[327722867,1716382238802,-155.31485281,0.00023709,2]
[327722869,1716382238811,-151.8895225,0.00023751,2]
[327722871,1716382238822,-12067.64333123,0.00023782,2]
[327722873,1716382238832,-152.98488687,0.00023793,2]
[327722875,1716382238841,-417.15771221,0.00023881,2]
[327722878,1716382238851,-417.15771221,0.00023891,2]
[327722879,1716382238860,-4222.159976,0.00023928,2]
[327722881,1716382238869,-155.46791382,0.0002393,2]
[327722883,1716382238878,-154.49054118,0.00023939,2]
[327722885,1716382238887,-151.8895225,0.00023982,2]
[327722887,1716382238896,-160.33977734,0.00024,2]
[327722889,1716382238905,-3141.38134088,0.00024,3]
[327722891,1716382238915,-500.0,0.00024,2]
[327722893,1716382238923,-500.0,0.00024,2]
[327722895,1716382238933,-500.0,0.00024,2]
[327722897,1716382238942,-500.0,0.00024,2]
[327722899,1716382238951,-500.0,0.00024,2]
[327722901,1716382238960,-500.0,0.00024,2]
[327722903,1716382238969,-500.0,0.00024,2]
[327722905,1716382238979,-500.0,0.00024,2]
[327722907,1716382238988,-500.0,0.00024,2]
[327722920,1716382239115,-500.0,0.00024,2]
[327722922,1716382239125,-500.0,0.00024,2]
[327722924,1716382239135,-500.0,0.00024,2]
[327722926,1716382239145,-500.0,0.00024,2]
[327722928,1716382239154,-500.0,0.00024,2]
[327722930,1716382239164,-500.0,0.00024,2]
[327722932,1716382239173,-500.0,0.00024,2]
[327722934,1716382239183,-500.0,0.00024,2]
[327722936,1716382239192,-500.0,0.00024,2]
[327722938,1716382239203,-500.0,0.00024,2]
[327722940,1716382239212,-500.0,0.00024,2]
[327722942,1716382239222,-500.0,0.00024,2]
[327722944,1716382239232,-500.0,0.00024,2]
[327722946,1716382239245,-500.0,0.00024,2]
[327722949,1716382239255,-500.0,0.00024,2]
[327722950,1716382239265,-500.0,0.00024,2]
[327722952,1716382239275,-500.0,0.00024,2]
[327722955,1716382239285,-500.0,0.00024,2]
[327722957,1716382239295,-500.0,0.00024,2]
[327722959,1716382239304,-500.0,0.00024,2]
[327722960,1716382239314,-500.0,0.00024,2]
[327722962,1716382239324,-500.0,0.00024,2]
[327722964,1716382239334,-500.0,0.00024,2]
[327722966,1716382239344,-500.0,0.00024,2]
[327722968,1716382239353,-500.0,0.00024,2]
[327722969,1716382239363,-500.0,0.00024,2]
[327722970,1716382239372,-500.0,0.00024,2]
[327722971,1716382239382,-500.0,0.00024,2]
[327722972,1716382239391,-500.0,0.00024,2]
[327722973,1716382239401,-500.0,0.00024,2]
[327722974,1716382239410,-500.0,0.00024,2]
[327722975,1716382239419,-500.0,0.00024,2]
[327722976,1716382239429,-500.0,0.00024,2]
[327722977,1716382239438,-500.0,0.00024,2]
[327722978,1716382239448,-500.0,0.00024,2]
[327722979,1716382239458,-500.0,0.00024,2]
[327722980,1716382239467,-500.0,0.00024,2]
[327722981,1716382239477,-500.0,0.00024,2]
[327722982,1716382239487,-500.0,0.00024,2]
[327722983,1716382239504,-500.0,0.00024,2]
[327722984,1716382239514,-500.0,0.00024,2]
[327722985,1716382239524,-500.0,0.00024,2]
[327722986,1716382239534,-500.0,0.00024,2]
[327722987,1716382239545,-500.0,0.00024,2]
[327722988,1716382239554,-500.0,0.00024,2]
[327722989,1716382239564,-500.0,0.00024,2]
[327722990,1716382239577,-500.0,0.00024,2]
[327722991,1716382239587,-500.0,0.00024,2]
[327722992,1716382239597,-500.0,0.00024,2]
[327722993,1716382239607,-500.0,0.00024,2]
[327722994,1716382239617,-500.0,0.00024,2]
[327722995,1716382239628,-500.0,0.00024,2]
[327722996,1716382239638,-500.0,0.00024,2]
[327722997,1716382239648,-500.0,0.00024,2]
[327722998,1716382239658,-500.0,0.00024,2]
[327722999,1716382239668,-500.0,0.00024,2]
[327723000,1716382239678,-500.0,0.00024,2]
[327723001,1716382239687,-500.0,0.00024,2]
[327723002,1716382239697,-500.0,0.00024,2]
[327723003,1716382239707,-500.0,0.00024,2]
[327723004,1716382239716,-500.0,0.00024,2]
[327723005,1716382239726,-500.0,0.00024,2]
[327723006,1716382239736,-500.0,0.00024,2]
[327723007,1716382239751,-500.0,0.00024,2]
[327723008,1716382239761,-500.0,0.00024,2]
[327723009,1716382239770,-500.0,0.00024,2]
[327723010,1716382239781,-500.0,0.00024,2]
[327723011,1716382239804,-500.0,0.00024,2]
[327723013,1716382239823,-500.0,0.00024,2]
[327723014,1716382239842,-500.0,0.00024,2]
[327723015,1716382239863,-500.0,0.00024,2]
[327723016,1716382239882,-500.0,0.00024,2]
[327723019,1716382239901,-500.0,0.00024,2]
[327723021,1716382239918,-500.0,0.00024,2]
[327723022,1716382239933,-500.0,0.00024,2]
[327723023,1716382239952,-500.0,0.00024,2]
[327723024,1716382239973,-500.0,0.00024,2]
[327723025,1716382239988,-500.0,0.00024,2]
[327723026,1716382240008,-500.0,0.00024,2]
[327723027,1716382240025,-500.0,0.00024,2]
[327723028,1716382240041,-500.0,0.00024,2]
[327723029,1716382240058,-500.0,0.00024,2]
[327723030,1716382240073,-500.0,0.00024,2]
[327723031,1716382240088,-500.0,0.00024,2]
[327723032,1716382240106,-500.0,0.00024,2]
[327723033,1716382240121,-500.0,0.00024,2]
[327723034,1716382240137,-500.0,0.00024,2]
[327723035,1716382240152,-500.0,0.00024,2]
[327723036,1716382240168,-500.0,0.00024,2]
[327723037,1716382240184,-500.0,0.00024,2]
[327723038,1716382240199,-500.0,0.00024,2]
[327723039,1716382240214,-500.0,0.00024,2]
[327723040,1716382240229,-500.0,0.00024,2]
[327723041,1716382240246,-500.0,0.00024,2]
[327723042,1716382240262,-500.0,0.00024,2]
[327723043,1716382240278,-500.0,0.00024,2]
[327723044,1716382240293,-500.0,0.00024,2]
[327723045,1716382240309,-500.0,0.00024,2]
[327723046,1716382240324,-500.0,0.00024,2]
[327723047,1716382240340,-500.0,0.00024,2]
[327723048,1716382240356,-500.0,0.00024,2]
[327723049,1716382240372,-500.0,0.00024,2]
[327723050,1716382240388,-500.0,0.00024,2]
[327723051,1716382240403,-500.0,0.00024,2]
[327723052,1716382240419,-500.0,0.00024,2]
[327723053,1716382240434,-500.0,0.00024,2]
[327723054,1716382240449,-500.0,0.00024,2]
[327723055,1716382240465,-500.0,0.00024,2]
[327723056,1716382240481,-500.0,0.00024,2]
[327723057,1716382240499,-500.0,0.00024,2]
[327723058,1716382240516,-500.0,0.00024,2]
[327723059,1716382240536,-500.0,0.00024,2]
[327723060,1716382240551,-500.0,0.00024,2]
[327723061,1716382240569,-500.0,0.00024,2]
[327723062,1716382240585,-500.0,0.00024,2]
[327723063,1716382240601,-500.0,0.00024,2]
[327723064,1716382240617,-500.0,0.00024,2]
[327723065,1716382240632,-500.0,0.00024,2]
[327723066,1716382240648,-500.0,0.00024,2]
[327723067,1716382240663,-500.0,0.00024,2]
[327723068,1716382240677,-500.0,0.00024,2]
[327723069,1716382240693,-500.0,0.00024,2]
[327723070,1716382240710,-500.0,0.00024,2]
[327723071,1716382240726,-500.0,0.00024,2]
[327723072,1716382240745,-500.0,0.00024,2]
[327723073,1716382240761,-500.0,0.00024,2]
[327723074,1716382240776,-500.0,0.00024,2]
[327723075,1716382240790,-500.0,0.00024,2]
[327723076,1716382240799,-500.0,0.00024,2]
[327723079,1716382240808,-500.0,0.00024,2]
[327723080,1716382240983,-500.0,0.00024,2]
[327723081,1716382240996,-500.0,0.00024,2]
[327723082,1716382241005,-500.0,0.00024,2]
[327723083,1716382241015,-500.0,0.00024,2]
[327723084,1716382241025,-500.0,0.00024,2]
[327723085,1716382241034,-500.0,0.00024,2]
[327723086,1716382241043,-500.0,0.00024,2]
[327723087,1716382241053,-500.0,0.00024,2]
[327723088,1716382241063,-500.0,0.00024,2]
[327723089,1716382241072,-500.0,0.00024,2]
[327723090,1716382241082,-500.0,0.00024,2]
[327723091,1716382241091,-500.0,0.00024,2]
[327723092,1716382241101,-500.0,0.00024,2]
[327723093,1716382241111,-500.0,0.00024,2]
[327723094,1716382241120,-500.0,0.00024,2]
[327723095,1716382241129,-500.0,0.00024,2]
[327723096,1716382241138,-500.0,0.00024,2]
[327723097,1716382241148,-160.07720588,0.00024021,2]
[327723098,1716382241157,-256.7607952,0.00024038,2]
[327723099,1716382241167,-1035.93410141,0.000241,2]
[327723100,1716382241176,-1001.487425,0.0002411,2]
[327723101,1716382241185,-489.06642785,0.00024124,2]
[327723102,1716382241194,-152.98488687,0.00024165,2]
[327723103,1716382241203,-160.36674768,0.00024166,2]
[327723104,1716382241213,-154.49054118,0.00024177,2]
[327723105,1716382241222,-152.98488687,0.00024183,2]
[327723106,1716382241232,-394.7284582,0.0002421,2]
[327723107,1716382241246,-489.06642785,0.00024224,2]
[327723108,1716382241256,-4222.159976,0.00024227,2]
[327723109,1716382241266,-180.0,0.0002423,2]
[327723110,1716382241275,-251.10652522,0.00024238,2]
[327723111,1716382241285,-155.46791382,0.00024256,2]
[327723112,1716382241295,-256.7607952,0.00024288,2]
[327723113,1716382241304,-166.66666666,0.0002433,2]
[327723114,1716382241314,-155.31485281,0.0002433,2]
[327723115,1716382241323,-159.36999109,0.00024376,2]
[327723116,1716382241332,-256.7607952,0.00024403,2]
[327723117,1716382241342,-151.8895225,0.00024445,2]
[327723118,1716382241351,-166.29644051,0.00024452,2]
[327723119,1716382241360,-460.59652737,0.000245,3]
[327723120,1716382241370,-256.7607952,0.00024508,2]
[327723121,1716382241380,-4222.159976,0.00024526,2]
[327723122,1716382241390,-489.06642785,0.00024565,2]
[327723123,1716382241400,-489.06642785,0.00024578,2]
[327723124,1716382241409,-3293.66028499,0.00024582,2]
[327723125,1716382241419,-155.31485281,0.00024632,2]
[327723126,1716382241429,-967.51,0.00024639,2]
[327723127,1716382241438,-302.39,0.00024658,2]
[327723128,1716382241447,-250.0,0.00024658,2]
[327723129,1716382241457,-158.89683256,0.00024669,2]
[327723130,1716382241466,-500.0,0.000247,2]
[327723131,1716382241476,-155.31485281,0.00024735,2]
[327723132,1716382241486,-151.97205109,0.00024752,2]
[327723133,1716382241503,-168.22440172,0.0002476,2]
[327723134,1716382241515,-500.0,0.00024795,2]
[327723135,1716382241524,-500.0,0.00024795,2]
[327723136,1716382241534,-500.0,0.00024795,2]
[327723137,1716382241546,-500.0,0.00024795,2]
[327723138,1716382241554,-500.0,0.00024795,2]
[327723139,1716382241564,-500.0,0.00024795,2]
[327723140,1716382241573,-500.0,0.00024795,2]
[327723141,1716382241583,-500.0,0.00024795,2]
[327723142,1716382241593,-500.0,0.00024795,2]
[327723143,1716382241602,-500.0,0.00024795,2]
[327723144,1716382241611,-500.0,0.00024795,2]
[327723145,1716382241621,-500.0,0.00024795,2]
[327723146,1716382241630,-500.0,0.00024795,2]
[327723147,1716382241640,-500.0,0.00024795,2]
[327723148,1716382241650,-500.0,0.00024795,2]
[327723149,1716382241659,-500.0,0.00024795,2]
[327723150,1716382241669,-500.0,0.00024795,2]
[327723151,1716382241679,-500.0,0.00024795,2]
[327723152,1716382241688,-500.0,0.00024795,2]
[327723153,1716382241698,-500.0,0.00024795,2]
[327723154,1716382241707,-500.0,0.00024795,2]
[327723155,1716382241716,-500.0,0.00024795,2]
[327723156,1716382241726,-500.0,0.00024795,2]
[327723157,1716382241735,-500.0,0.00024795,2]
[327723158,1716382241748,-500.0,0.00024795,2]
[327723159,1716382241757,-500.0,0.00024795,2]
[327723160,1716382241767,-500.0,0.00024795,2]
[327723161,1716382241776,-500.0,0.00024795,2]
[327723162,1716382241785,-500.0,0.00024795,2]
[327723163,1716382241794,-500.0,0.00024795,2]
[327723164,1716382241803,-500.0,0.00024795,2]
[327723165,1716382241812,-500.0,0.00024795,2]
[327723166,1716382241822,-500.0,0.00024795,2]
[327723167,1716382241831,-500.0,0.00024795,2]
[327723168,1716382241840,-500.0,0.00024795,2]
[327723169,1716382241849,-500.0,0.00024795,2]
[327723170,1716382241858,-500.0,0.00024795,2]
[327723171,1716382241867,-500.0,0.00024795,2]
[327723172,1716382241877,-500.0,0.00024795,2]
[327723173,1716382241886,-500.0,0.00024795,2]
[327723174,1716382241895,-500.0,0.00024795,2]
[327723175,1716382241904,-500.0,0.00024795,2]
[327723176,1716382241913,-500.0,0.00024795,2]
[327723177,1716382241924,-500.0,0.00024795,2]
[327723178,1716382241933,-500.0,0.00024795,2]
[327723179,1716382241942,-500.0,0.00024795,2]
[327723180,1716382241952,-500.0,0.00024795,2]
[327723181,1716382241962,-500.0,0.00024795,2]
[327723182,1716382241971,-500.0,0.00024795,2]
[327723183,1716382241980,-500.0,0.00024795,2]
[327723184,1716382241989,-500.0,0.00024795,2]
[327723185,1716382242003,-500.0,0.00024795,2]
[327723186,1716382242012,-500.0,0.00024795,2]
[327723187,1716382242022,-500.0,0.00024795,2]
[327723188,1716382242031,-500.0,0.00024795,2]
[327723189,1716382242040,-500.0,0.00024795,2]
[327723190,1716382242049,-500.0,0.00024795,2]
[327723191,1716382242058,-500.0,0.00024795,2]
[327723192,1716382242068,-500.0,0.00024795,2]
[327723193,1716382242077,-500.0,0.00024795,2]
[327723194,1716382242087,-500.0,0.00024795,2]
[327723195,1716382242097,-4222.159976,0.00024825,2]
[327723196,1716382242107,-981.86203427,0.000249,3]
[327723197,1716382242116,-174.0894968,0.000249,2]
[327723198,1716382242126,-197.52167346,0.000249,2]
[327723199,1716382242135,-165.9138251,0.000249,2]
[327723200,1716382242144,-624.46139119,0.000249,2]
[327723201,1716382242154,-6358.0849243,0.000249,2]
[327723202,1716382242163,-198.72994486,0.000249,2]
[327723203,1716382242173,-1001.487425,0.00024932,2]
[327723204,1716382242182,-904.0,0.0002497,15]
[327723205,1716382242191,-189.0,0.0002497,15]
[327723206,1716382242201,-904.0,0.0002498,15]
[327723207,1716382242210,-189.0,0.0002498,15]
[327723208,1716382242219,-3740.895,0.00024986,2]
[327723209,1716382242229,-1003.65930496,0.0002499,2]
[327723210,1716382242239,-261.5,0.0002499,15]
[327723211,1716382242255,-904.0,0.0002499,15]
[327723212,1716382242263,-189.0,0.0002499,15]
[327723213,1716382242272,-162.79015965,0.0002499,2]
[327723214,1716382242282,-564227.20774629,0.00025,7]
[327723215,1716382242291,-1466113.20098256,0.00025,2]
[327723216,1716382242535,-592578.16892733,0.00025,2]
[327723239,1716382243053,-7500.45083114,0.00025,2]
[327723241,1716382243094,-492.66631015,0.00025,2]
[327723244,1716382243109,-301.66187021,0.00025,2]
[327723247,1716382243122,-2529.04740273,0.00025,2]
[327723252,1716382243141,-778.996787,0.00025,2]
[327723254,1716382243154,-1499.999998,0.00025,2]
[327723255,1716382243167,-483.41200212,0.00025,2]
[327723256,1716382243191,-3090.67240736,0.00017259,2]
[327723257,1716382243201,-67771.23536122,0.00025,2]
[327723258,1716382243210,-224.2998362,0.00025,2]
[327723259,1716382243220,-155.60543893,0.00025,2]
[327723260,1716382243230,-155.0,0.00025,2]
[327723261,1716382243240,-1277.76350076,0.00025,2]
[327723262,1716382243254,-846.24389398,0.00025,2]
[327723263,1716382243478,-200.98269384,0.00017259,2]
[327723264,1716382243488,-2353.75610602,0.00025,2]
[327723265,1716382243508,-933.40125691,0.00025,2]
[327723266,1716382243518,-2201.8593106,0.00025,2]
[327723267,1716382243530,-1418.27,0.00025,2]
[327723268,1716382243541,-56.10063263,0.00025,2]
[327723269,1716382243626,-2800.91698577,0.00025,2]
[327723270,1716382243712,-151.0,0.00025,7]
[327723271,1716382243813,-199.788348,0.00025,7]
[327723273,1716382243920,-533.29466623,0.00025,2]
[327723276,1716382244238,-1166.84533377,0.00025,2]
[327723277,1716382244254,-248.366365,0.00025,7]
[327723278,1716382244264,-163.056711,0.00025,7]
[327723279,1716382244274,-151.0,0.00025,7]
[327723280,1716382244284,-151.0,0.00025,7]
[327723281,1716382244293,-151.0,0.00025,7]
[327723282,1716382244303,-151.0,0.00025,7]
[327723283,1716382244312,-152.906893,0.00025,7]
[327723284,1716382244321,-69.92869723,0.00025,7]
[327723285,1716382244333,-82.97819577,0.00025,7]
[327723286,1716382244447,-174.288178,0.00025,7]
[327723287,1716382244462,-152.906893,0.00025,7]
[327723288,1716382244471,-152.906893,0.00025,7]
[327723289,1716382244482,-151.0,0.00025,7]
[327723290,1716382244496,-151.0,0.00025,7]
[327723291,1716382244508,-151.0,0.00025,7]
[327723292,1716382244519,-167.32065,0.00025,7]
[327723293,1716382244529,-151.0,0.00025,7]
[327723294,1716382244539,-151.0,0.00025,7]
[327723295,1716382244549,-151.0,0.00025,7]
[327723296,1716382244559,-151.0,0.00025,7]
[327723297,1716382244569,-151.0,0.00025,7]
[327723298,1716382244580,-151.0,0.00025,7]
[327723299,1716382244591,-151.0,0.00025,7]
[327723300,1716382244601,-240.468899,0.00025,7]
[327723301,1716382244610,-151.0,0.00025,7]
[327723302,1716382244621,-177.390616,0.00025,7]
[327723303,1716382244631,-151.0,0.00025,7]
[327723304,1716382244641,-151.0,0.00025,7]
[327723305,1716382244651,-151.0,0.00025,7]
[327723306,1716382244661,-171.688414,0.00025,7]
[327723307,1716382244671,-151.0,0.00025,7]
[327723308,1716382244681,-151.0,0.00025,7]
[327723309,1716382244692,-151.0,0.00025,7]
[327723310,1716382244702,-151.0,0.00025,7]
[327723311,1716382244713,-151.0,0.00025,7]
[327723312,1716382244723,-151.0,0.00025,7]
[327723313,1716382244732,-263.692458,0.00025,7]
[327723314,1716382244745,-151.0,0.00025,7]
[327723315,1716382244755,-151.0,0.00025,7]
[327723316,1716382244765,-151.0,0.00025,7]
[327723317,1716382244774,-151.0,0.00025,7]
[327723318,1716382244784,-151.0,0.00025,7]
[327723319,1716382244793,-151.0,0.00025,7]
[327723320,1716382244803,-151.0,0.00025,7]
[327723322,1716382244813,-151.0,0.00025,7]
[327723324,1716382244823,-151.0,0.00025,7]
[327723326,1716382244833,-154.635562,0.00025,7]
[327723328,1716382244843,-151.0,0.00025,7]
[327723329,1716382244852,-151.0,0.00025,7]
[327723331,1716382244862,-151.0,0.00025,7]
[327723333,1716382244872,-445.41817332,0.00025,2]
[327723335,1716382244881,-151.0,0.00025,7]
[327723337,1716382244890,-206.942991,0.00025,7]
[327723339,1716382244899,-1043.83643081,0.00025,2]
[327723341,1716382244908,-257.11879413,0.00025,2]
[327723343,1716382244918,-171.127113,0.00025,7]
[327723345,1716382244927,-164.886221,0.00025,7]
[327723347,1716382244935,-164.886221,0.00025,7]
[327723349,1716382244945,-37481.60438299,0.00025,2]
[327723351,1716382244954,-1039.40241281,0.00025,2]
[327723353,1716382244964,-235.026742,0.00025,7]
[327723355,1716382244973,-500.0,0.00025,2]
[327723357,1716382244984,-800.0,0.00025,2]
[327723359,1716382244997,-151.0,0.00025,7]
[327723361,1716382245007,-292.33058439,0.00025,2]
[327723363,1716382245016,-379.253131,0.00025,7]
[327723365,1716382245025,-379.253131,0.00025,7]
[327723367,1716382245034,-151.0,0.00025,7]
[327723369,1716382245044,-151.0,0.00025,7]
[327723371,1716382245053,-151.0,0.00025,7]
[327723373,1716382245063,-151.0,0.00025,7]
[327723375,1716382245073,-151.0,0.00025,7]
[327723377,1716382245083,-151.0,0.00025,7]
[327723379,1716382245092,-155.393933,0.00025,7]
[327723381,1716382245102,-298.965922,0.00025,7]
[327723383,1716382245111,-151.0,0.00025,7]
[327723385,1716382245120,-237.50678,0.00025,7]
[327723387,1716382245129,-153.022841,0.00025,7]
[327723389,1716382245138,-151.0,0.00025,7]
[327723391,1716382245147,-151.0,0.00025,7]
[327723393,1716382245157,-151.0,0.00025,7]
[327723395,1716382245168,-151.0,0.00025,7]
[327723397,1716382245178,-151.0,0.00025,7]
[327723399,1716382245187,-153.071131,0.00025,7]
[327723401,1716382245196,-158.388847,0.00025,7]
[327723403,1716382245204,-151.0,0.00025,7]
[327723405,1716382245213,-151.0,0.00025,7]
[327723406,1716382245222,-151.0,0.00025,7]
[327723408,1716382245232,-151.0,0.00025,7]
[327723411,1716382245241,-224.53778,0.00025,7]
[327723412,1716382245255,-224.53778,0.00025,7]
[327723414,1716382245264,-224.53778,0.00025,7]
[327723417,1716382245273,-224.53778,0.00025,7]
[327723419,1716382245284,-151.0,0.00025,7]
[327723421,1716382245293,-151.0,0.00025,7]
[327723422,1716382245303,-241.81479,0.00025,7]
[327723424,1716382245313,-296.994175,0.00025,7]
[327723426,1716382245323,-417.15771221,0.00025039,2]
[327723427,1716382245334,-251.10652522,0.0002505,2]
[327723428,1716382245344,-256.7607952,0.00025081,2]
[327723429,1716382245354,-489.06642785,0.00025091,2]
[327723430,1716382245365,-4222.159976,0.00025124,2]
[327723431,1716382245374,-154.49054118,0.00025152,2]
[327723432,1716382245384,-151.97205109,0.00025153,2]
[327723433,1716382245394,-151.97205109,0.00025182,2]
[327723434,1716382245404,-256.7607952,0.00025185,2]
[327723435,1716382245413,-154.49054118,0.00025194,2]
[327723436,1716382245422,-205.54,0.000252,2]
[327723437,1716382245432,-251.10652522,0.00025207,2]